fUST/lending_fUST_20241214
["ID","MTS","AMOUNT","RATE_DAILY","PERIOD"]
[345279592,1734132656765,-243.58443432,0.00027945,7]
[345279593,1734132656775,-500.0,0.00027945,7]
[345279594,1734132656784,-137.23971294,0.00027945,7]
[345279598,1734133303354,256.604531,0.00013973,2]
[345279714,1734133832363,-256.604531,0.00020447,2]
[345279716,1734133832373,-160.0,0.00022,2]
[345279718,1734133832382,-399.821051,0.00023672,2]
[345279720,1734133832391,-300.0,0.00024378,2]
[345279722,1734133832400,-300.0,0.00024378,2]
[345279723,1734133832410,-16217.1067351,0.00024379,2]
[345279725,1734133832419,-1455.08352108,0.00024388,2]
[345279727,1734133832428,-169.23176,0.00024488,2]
[345279729,1734133832438,-225.182646,0.00024699,2]
[345279731,1734133832447,-533.0,0.00024886,2]
[345279733,1734133832456,-2158.0,0.00024886,2]
[345279735,1734133832465,-2370.0,0.00024886,2]
[345279737,1734133832475,-2375.74403878,0.00025184,2]
[345279739,1734133832484,-17532.6926684,0.00025192,2]
[345279741,1734133832493,-173.8717751,0.00025284,2]
[345279743,1734133832502,-152.0,0.00025511,2]
[345279745,1734133832512,-193.9442115,0.00025513,2]
[345279747,1734133832523,-225.182646,0.00025613,2]
[345279749,1734133832532,-2375.74403871,0.0002589,2]
[345279751,1734133832542,-9046.77142869,0.00026179,2]
[345279753,1734133832552,-9046.77142869,0.00026377,2]
[345279755,1734133832561,-500.0,0.00026394,10]
[345279757,1734133832570,-267.94060627,0.00026398,10]
[345279759,1734133832579,-420.0,0.00026426,2]
[345279761,1734133832589,-225.182646,0.00026527,2]
[345279763,1734133832598,-605.713,0.0002654,2]
[345279765,1734133832607,-2375.74403871,0.00026595,2]
[345279767,1734133832617,-9046.77142869,0.00026675,2]
[345279769,1734133832626,-420.0,0.00026816,2]
[345279782,1734133832732,-256.604531,0.00026921,2]
[345279783,1734133832742,-9046.77142869,0.00027008,2]
[345279784,1734133832753,-9046.77142869,0.00027211,2]
[345279785,1734133832762,-666.0,0.00027297,2]
[345279786,1734133832771,-1000.0,0.000273,2]
[345279787,1734133832780,-2375.74403871,0.00027301,2]
[345279788,1734133832790,-497.00045942,0.00027396,2]
[345279789,1734133832800,-500.0,0.00027396,2]
[345279790,1734133832810,-500.0,0.00027396,2]
[345279791,1734133832820,-500.0,0.00027396,2]
[345279792,1734133832829,-500.0,0.00027396,2]
[345279793,1734133832838,-481.46853514,0.00027396,2]
[345279794,1734133832851,-18.53146486,0.00027396,2]
[345279795,1734133832860,-500.0,0.00027396,2]
[345279796,1734133832870,-500.0,0.00027396,2]
[345279797,1734133832880,-500.0,0.00027396,2]
[345279798,1734133832889,-500.0,0.00027396,2]
[345279799,1734133832898,-500.0,0.00027396,2]
[345279800,1734133832907,-500.0,0.00027396,2]
[345279801,1734133832917,-500.0,0.00027396,2]
[345279802,1734133832926,-500.0,0.00027396,2]
[345279803,1734133832935,-500.0,0.00027396,2]
[345279804,1734133832944,-500.0,0.00027396,2]
[345279805,1734133832953,-500.0,0.00027396,2]
[345279806,1734133832962,-563.87264285,0.00027396,2]
[345279807,1734133832973,-391.62361692,0.00027396,2]
[345279808,1734133832982,-500.0,0.00027396,2]
[345279809,1734133832992,-500.0,0.00027396,2]
[345279810,1734133833001,-500.0,0.00027396,2]
[345279811,1734133833010,-271.61666004,0.00027396,2]
[345279812,1734133833019,-500.0,0.00027396,2]
[345279813,1734133833028,-500.0,0.00027396,2]
[345279814,1734133833037,-500.0,0.00027396,2]
[345279815,1734133833047,-500.0,0.00027396,2]
[345279816,1734133833056,-500.0,0.00027396,2]
[345279817,1734133833065,-256.75780271,0.00027396,2]
[345279818,1734133833076,-502.01034964,0.00027397,7]
[345279819,1734133833085,-558.23228737,0.00027397,7]
[345279820,1734133833095,-502.4733482,0.00027397,7]
[345279821,1734133833104,-500.0,0.00027397,7]
[345279822,1734133833113,-485.70053789,0.00027397,7]
[345279823,1734133833123,-509.66346961,0.00027397,7]
[345279824,1734133833142,-505.42240743,0.00027397,7]
[345279825,1734133833153,-500.0,0.00027397,7]
[345279826,1734133833163,-500.0,0.00027397,7]
[345279827,1734133833174,-255.39971597,0.00027397,7]
[345279828,1734133833190,-253.88253654,0.00027397,7]
[345279829,1734133833200,-500.0,0.00027397,7]
[345279830,1734133833211,-500.0,0.00027397,7]
[345279831,1734133833220,-500.0,0.00027397,7]
[345279832,1734133833231,-500.0,0.00027397,7]
[345279833,1734133833241,-500.0,0.00027397,7]
[345279834,1734133833251,-500.0,0.00027397,7]
[345279835,1734133833260,-229.95408362,0.00027397,7]
[345279836,1734133833273,-270.04591638,0.00027397,7]
[345279837,1734133833283,-207.03377212,0.00027397,7]
[345279838,1734133833296,-292.96622788,0.00027397,7]
[345279839,1734133833306,-500.0,0.00027397,7]
[345279840,1734133833316,-500.0,0.00027397,7]
[345279841,1734133833325,-500.0,0.00027397,7]
[345279842,1734133833335,-488.48258893,0.00027397,7]
[345279843,1734133833344,-507.88328009,0.00027397,7]
[345279844,1734133833354,-500.0,0.00027397,7]
[345279845,1734133833364,-500.0,0.00027397,7]
[345279846,1734133833373,-500.0,0.00027397,7]
[345279847,1734133833383,-500.0,0.00027397,7]
[345279848,1734133833393,-610.73,0.00027397,7]
[345279849,1734133833404,-502.95924412,0.00027397,7]
[345279850,1734133833413,-500.0,0.00027397,7]
[345279851,1734133833423,-500.0,0.00027397,7]
[345279852,1734133833433,-619.16,0.00027397,7]
[345279853,1734133833443,-500.0,0.00027397,7]
[345279854,1734133833452,-500.0,0.00027397,7]
[345279855,1734133833462,-500.0,0.00027397,7]
[345279856,1734133833473,-500.0,0.00027397,7]
[345279857,1734133833483,-500.0,0.00027397,7]
[345279858,1734133833493,-777.57,0.00027397,7]
[345279859,1734133833503,-500.0,0.00027397,7]
[345279860,1734133833513,-395.13447029,0.00027397,7]
[345279861,1734133833524,-502.10099099,0.00027397,7]
[345279862,1734133833534,-505.86638322,0.00027397,7]
[345279863,1734133833543,-500.0,0.00027397,7]
[345279864,1734133833552,-500.0,0.00027397,7]
[345279865,1734133833562,-500.0,0.00027397,7]
[345279866,1734133833572,-432.85706748,0.00027397,7]
[345279867,1734133833582,-500.0,0.00027397,7]
[345279868,1734133833592,-500.0,0.00027397,7]
[345279869,1734133833601,-500.0,0.00027397,7]
[345279870,1734133833611,-500.0,0.00027397,7]
[345279871,1734133833627,-500.0,0.00027397,7]
[345279872,1734133833644,-502.92574346,0.00027397,7]
[345279873,1734133833660,-500.0,0.00027397,7]
[345279874,1734133833678,-500.0,0.00027397,7]
[345279875,1734133833691,-576.02597499,0.00027397,7]
[345279876,1734133833707,-500.0,0.00027397,7]
[345279877,1734133833724,-500.0,0.00027397,7]
[345279878,1734133833740,-500.0,0.00027397,7]
[345279879,1734133833757,-500.0,0.00027397,7]
[345279880,1734133833772,-500.0,0.00027397,7]
[345279881,1734133833788,-500.0,0.00027397,7]
[345279882,1734133833803,-500.0,0.00027397,7]
[345279883,1734133833817,-500.0,0.00027397,7]
[345279884,1734133833832,-472.56,0.00027397,7]
[345279885,1734133833847,-500.0,0.00027397,7]
[345279886,1734133833862,-500.0,0.00027397,7]
[345279887,1734133833877,-500.0,0.00027397,7]
[345279888,1734133833890,-500.0,0.00027397,7]
[345279889,1734133833901,-500.0,0.00027397,7]
[345279890,1734133833915,-500.0,0.00027397,7]
[345279891,1734133833928,-500.0,0.00027397,7]
[345279892,1734133833941,-500.0,0.00027397,7]
[345279893,1734133833956,-500.0,0.00027397,7]
[345279894,1734133833970,-500.0,0.00027397,7]
[345279895,1734133833985,-500.0,0.00027397,7]
[345279896,1734133833999,-500.0,0.00027397,7]
[345279897,1734133834013,-500.0,0.00027397,7]
[345279898,1734133834024,-500.0,0.00027397,7]
[345279899,1734133834035,-500.0,0.00027397,7]
[345279900,1734133834046,-500.0,0.00027397,7]
[345279901,1734133834060,-500.0,0.00027397,7]
[345279902,1734133834074,-286.46999416,0.00027397,7]
[345279903,1734133834088,-920.42,0.00027397,7]
[345279904,1734133834099,-500.0,0.00027397,7]
[345279905,1734133834111,-500.0,0.00027397,7]
[345279906,1734133834124,-500.0,0.00027397,7]
[345279907,1734133834137,-500.0,0.00027397,7]
[345279908,1734133834149,-500.0,0.00027397,7]
[345279909,1734133834160,-600.21751426,0.00027397,7]
[345279910,1734133834171,-500.0,0.00027397,7]
[345279911,1734133834183,-310.30602531,0.00027397,7]
[345279912,1734133834196,-819.14,0.00027397,7]
[345279913,1734133834209,-733.36,0.00027397,7]
[345279914,1734133834220,-500.0,0.00027397,7]
[345279915,1734133834233,-619.82371742,0.00027397,7]
[345279916,1734133834244,-500.0,0.00027397,7]
[345279917,1734133834256,-1537.24,0.00027397,7]
[345279918,1734133834268,-500.0,0.00027397,7]
[345279919,1734133834279,-408.69655261,0.00027397,7]
[345279920,1734133834290,-158.93142158,0.00027397,7]
[345279921,1734133834302,-500.0,0.00027397,7]
[345279922,1734133834313,-500.0,0.00027397,7]
[345279923,1734133834325,-500.0,0.00027397,7]
[345279924,1734133834338,-500.0,0.00027397,7]
[345279925,1734133834350,-500.0,0.00027397,7]
[345279926,1734133834361,-500.0,0.00027397,7]
[345279927,1734133834373,-740.85,0.00027397,7]
[345279928,1734133834385,-500.0,0.00027397,7]
[345279929,1734133834396,-500.0,0.00027397,7]
[345279930,1734133834408,-500.0,0.00027397,7]
[345279931,1734133834419,-500.0,0.00027397,7]
[345279932,1734133834431,-500.0,0.00027397,7]
[345279933,1734133834442,-500.0,0.00027397,7]
[345279934,1734133834454,-258.81713092,0.00027397,7]
[345279935,1734133834465,-607.2,0.00027397,7]
[345279936,1734133834478,-585.18,0.00027397,7]
[345279937,1734133834490,-500.0,0.00027397,7]
[345279938,1734133834501,-276.33525443,0.00027397,7]
[345279939,1734133834513,-500.0,0.00027397,7]
[345279940,1734133834524,-500.0,0.00027397,7]
[345279941,1734133834535,-266.91,0.00027397,7]
[345279942,1734133834547,-500.0,0.00027397,7]
[345279943,1734133834559,-500.0,0.00027397,7]
[345279944,1734133834573,-1226.31,0.00027397,7]
[345279945,1734133834586,-500.0,0.00027397,7]
[345279946,1734133834599,-566.96,0.00027397,7]
[345279947,1734133834612,-500.0,0.00027397,7]
[345279948,1734133834624,-500.0,0.00027397,7]
[345279949,1734133834637,-500.0,0.00027397,7]
[345279950,1734133834650,-226.17,0.00027397,2]
[345279951,1734133834662,-500.0,0.00027397,7]
[345279952,1734133834674,-500.0,0.00027397,7]
[345279953,1734133834687,-500.0,0.00027397,7]
[345279954,1734133834698,-500.0,0.00027397,7]
[345279955,1734133834710,-500.0,0.00027397,7]
[345279956,1734133834726,-500.0,0.00027397,7]
[345279957,1734133834738,-525.75212977,0.00027397,7]
[345279958,1734133834747,-1077.08,0.00027397,7]
[345279959,1734133834888,-500.0,0.00027397,7]
[345279960,1734133834906,-500.0,0.00027397,7]
[345279961,1734133834917,-500.0,0.00027397,7]
[345279962,1734133834928,-554.1,0.00027397,7]
[345279963,1734133834938,-500.0,0.00027397,7]
[345279964,1734133834948,-500.0,0.00027397,7]
[345279965,1734133834958,-500.0,0.00027397,7]
[345279966,1734133834968,-500.0,0.00027397,7]
[345279967,1734133834979,-500.0,0.00027397,7]
[345279968,1734133834989,-500.0,0.00027397,7]
[345279969,1734133834999,-500.0,0.00027397,7]
[345279970,1734133835009,-500.0,0.00027397,7]
[345279971,1734133835019,-502.42535369,0.00027397,7]
[345279972,1734133835029,-758.82,0.00027397,7]
[345279973,1734133835040,-504.15748364,0.00027397,7]
[345279974,1734133835051,-500.0,0.00027397,7]
[345279975,1734133835060,-500.0,0.00027397,7]
[345279976,1734133835070,-500.0,0.00027397,7]
[345279977,1734133835079,-377.58860869,0.00027397,7]
[345279978,1734133835088,-522.07127285,0.00027397,7]
[345279979,1734133835098,-500.0,0.00027397,7]
[345279980,1734133835108,-915.97,0.00027397,7]
[345279981,1734133835118,-500.0,0.00027397,7]
[345279982,1734133835127,-500.0,0.00027397,7]
[345279983,1734133835136,-500.0,0.00027397,7]
[345279984,1734133835145,-500.0,0.00027397,7]
[345279985,1734133835154,-1622.05,0.00027397,7]
[345279986,1734133835164,-577.60934291,0.00027397,7]
[345279987,1734133835173,-500.0,0.00027397,7]
[345279988,1734133835182,-500.0,0.00027397,7]
[345279989,1734133835191,-500.0,0.00027397,7]
[345279990,1734133835204,-500.0,0.00027397,7]
[345279991,1734133835213,-500.0,0.00027397,7]
[345279992,1734133835222,-500.0,0.00027397,7]
[345279993,1734133835232,-500.0,0.00027397,7]
[345279994,1734133835242,-500.0,0.00027397,7]
[345279995,1734133835251,-500.0,0.00027397,7]
[345279996,1734133835261,-423.71506116,0.00027397,7]
[345279997,1734133835271,-500.0,0.00027397,7]
[345279998,1734133835281,-500.0,0.00027397,7]
[345279999,1734133835290,-717.09,0.00027397,7]
[345280000,1734133835300,-500.0,0.00027397,7]
[345280001,1734133835310,-500.0,0.00027397,7]
[345280002,1734133835320,-500.0,0.00027397,7]
[345280003,1734133835330,-500.0,0.00027397,7]
[345280004,1734133835339,-500.0,0.00027397,7]
[345280005,1734133835348,-500.0,0.00027397,7]
[345280006,1734133835358,-500.0,0.00027397,7]
[345280007,1734133835367,-500.0,0.00027397,7]
[345280008,1734133835377,-1431.53,0.00027397,7]
[345280009,1734133835387,-500.0,0.00027397,7]
[345280010,1734133835396,-500.0,0.00027397,7]
[345280011,1734133835407,-500.0,0.00027397,7]
[345280012,1734133835418,-500.0,0.00027397,7]
[345280013,1734133835427,-500.0,0.00027397,7]
[345280014,1734133835436,-500.0,0.00027397,7]
[345280015,1734133835445,-500.0,0.00027397,7]
[345280016,1734133835455,-508.22845946,0.00027397,7]
[345280017,1734133835465,-502.64985281,0.00027397,7]
[345280018,1734133835477,-500.0,0.00027397,7]
[345280019,1734133835486,-500.0,0.00027397,7]
[345280020,1734133835495,-500.0,0.00027397,7]
[345280021,1734133835506,-500.0,0.00027397,7]
[345280022,1734133835515,-500.0,0.00027397,7]
[345280023,1734133835524,-500.0,0.00027397,7]
[345280024,1734133835533,-500.0,0.00027397,7]
[345280025,1734133835542,-297.48804232,0.00027397,7]
[345280026,1734133835552,-615.24385755,0.00027397,7]
[345280027,1734133835561,-500.0,0.00027397,7]
[345280028,1734133835570,-500.0,0.00027397,7]
[345280029,1734133835580,-500.0,0.00027397,7]
[345280030,1734133835590,-500.0,0.00027397,7]
[345280031,1734133835599,-600.72,0.00027397,7]
[345280032,1734133835608,-886.26,0.00027397,7]
[345280033,1734133835618,-500.0,0.00027397,7]
[345280034,1734133835627,-621.85902245,0.00027397,7]
[345280035,1734133835636,-500.0,0.00027397,7]
[345280036,1734133835645,-500.0,0.00027397,7]
[345280037,1734133835655,-500.0,0.00027397,7]
[345280038,1734133835664,-500.0,0.00027397,7]
[345280039,1734133835673,-500.0,0.00027397,7]
[345280040,1734133835682,-1509.63,0.00027397,7]
[345280041,1734133835691,-500.0,0.00027397,7]
[345280042,1734133835700,-539.48381635,0.00027397,7]
[345280043,1734133835709,-500.0,0.00027397,7]
[345280044,1734133835723,-9252.14,0.00027397,7]
[345280045,1734133835732,-878.71,0.00027397,7]
[345280046,1734133835741,-500.0,0.00027397,7]
[345280047,1734133835750,-500.0,0.00027397,7]
[345280048,1734133835760,-500.0,0.00027397,7]
[345280049,1734133835770,-500.0,0.00027397,7]
[345280050,1734133835780,-1000.0,0.00027397,7]
[345280051,1734133835789,-200.0,0.00027397,7]
[345280052,1734133835801,-1829.04,0.00027397,7]
[345280053,1734133835810,-500.0,0.00027397,7]
[345280054,1734133835820,-500.0,0.00027397,7]
[345280055,1734133835829,-504.71916636,0.00027397,7]
[345280056,1734133835838,-500.0,0.00027397,7]
[345280057,1734133835847,-500.0,0.00027397,7]
[345280058,1734133835856,-3135.49,0.00027397,7]
[345280059,1734133835866,-500.0,0.00027397,7]
[345280060,1734133835875,-500.0,0.00027397,7]
[345280061,1734133835885,-500.0,0.00027397,7]
[345280062,1734133835895,-500.0,0.00027397,7]
[345280063,1734133835904,-500.0,0.00027397,7]
[345280064,1734133835913,-7168.19,0.00027397,5]
[345280065,1734133835922,-500.0,0.00027397,7]
[345280066,1734133835932,-500.0,0.00027397,7]
[345280067,1734133835942,-500.0,0.00027397,7]
[345280068,1734133835951,-500.0,0.00027397,7]
[345280069,1734133835961,-500.0,0.00027397,7]
[345280070,1734133835971,-500.0,0.00027397,7]
[345280071,1734133835982,-503.40052757,0.00027397,7]
[345280072,1734133835991,-503.80188771,0.00027397,7]
[345280073,1734133836001,-500.0,0.00027397,7]
[345280074,1734133836010,-500.0,0.00027397,7]
[345280075,1734133836019,-500.0,0.00027397,7]
[345280076,1734133836029,-500.0,0.00027397,7]
[345280077,1734133836039,-500.0,0.00027397,7]
[345280078,1734133836050,-500.0,0.00027397,7]
[345280079,1734133836061,-587.67,0.00027397,7]
[345280080,1734133836070,-500.0,0.00027397,7]
[345280081,1734133836079,-500.0,0.00027397,7]
[345280082,1734133836088,-544.5,0.00027397,7]
[345280083,1734133836098,-585.54,0.00027397,7]
[345280084,1734133836107,-57.15148456,0.00027397,7]
[345280085,1734133836243,-116.95627699,0.00027397,7]
[345280086,1734133836253,-500.0,0.00027397,7]
[345280087,1734133836263,-625.34,0.00027397,7]
[345280088,1734133836272,-501.42265686,0.00027397,7]
[345280089,1734133836281,-1600.94,0.00027397,7]
[345280090,1734133836290,-500.0,0.00027397,7]
[345280091,1734133836300,-500.0,0.00027397,7]
[345280092,1734133836309,-710.13,0.00027397,7]
[345280093,1734133836318,-500.0,0.00027397,7]
[345280094,1734133836327,-500.0,0.00027397,7]
[345280095,1734133836336,-500.0,0.00027397,7]
[345280096,1734133836345,-500.0,0.00027397,7]
[345280097,1734133836354,-500.0,0.00027397,7]
[345280098,1734133836363,-1356.42,0.00027397,7]
[345280099,1734133836372,-500.0,0.00027397,7]
[345280100,1734133836381,-500.0,0.00027397,7]
[345280101,1734133836390,-500.0,0.00027397,7]
[345280102,1734133836400,-500.0,0.00027397,7]
[345280103,1734133836409,-500.0,0.00027397,7]
[345280104,1734133836418,-500.0,0.00027397,7]
[345280105,1734133836427,-500.0,0.00027397,7]
[345280106,1734133836437,-500.0,0.00027397,7]
[345280107,1734133836446,-500.0,0.00027397,7]
[345280108,1734133836456,-591.3,0.00027397,7]
[345280109,1734133836465,-500.0,0.00027397,7]
[345280110,1734133836474,-814.31,0.00027397,7]
[345280111,1734133836483,-1780.39,0.00027397,7]
[345280112,1734133836493,-500.0,0.00027397,7]
[345280113,1734133836502,-500.0,0.00027397,7]
[345280114,1734133836511,-500.0,0.00027397,7]
[345280115,1734133836520,-500.0,0.00027397,7]
[345280116,1734133836529,-500.0,0.00027397,7]
[345280117,1734133836539,-500.0,0.00027397,7]
[345280118,1734133836548,-1750.72,0.00027397,7]
[345280119,1734133836557,-692.77,0.00027397,7]
[345280120,1734133836566,-578.81,0.00027397,7]
[345280121,1734133836575,-500.0,0.00027397,7]
[345280122,1734133836585,-864.17,0.00027397,7]
[345280123,1734133836594,-1324.43,0.00027397,7]
[345280124,1734133836603,-500.0,0.00027397,7]
[345280125,1734133836612,-500.0,0.00027397,7]
[345280126,1734133836621,-585.1,0.00027397,7]
[345280127,1734133836631,-500.0,0.00027397,7]
[345280128,1734133836641,-500.0,0.00027397,7]
[345280129,1734133836651,-500.0,0.00027397,7]
[345280130,1734133836660,-500.0,0.00027397,7]
[345280131,1734133836669,-500.0,0.00027397,7]
[345280132,1734133836679,-500.0,0.00027397,7]
[345280133,1734133836689,-500.0,0.00027397,7]
[345280134,1734133836698,-500.0,0.00027397,7]
[345280135,1734133836707,-500.0,0.00027397,7]
[345280136,1734133836720,-500.0,0.00027397,7]
[345280137,1734133836730,-500.0,0.00027397,7]
[345280138,1734133836739,-500.0,0.00027397,7]
[345280139,1734133836748,-500.0,0.00027397,7]
[345280140,1734133836759,-500.0,0.00027397,7]
[345280141,1734133836768,-500.0,0.00027397,7]
[345280142,1734133836777,-561.83,0.00027397,7]
[345280143,1734133836786,-500.0,0.00027397,7]
[345280144,1734133836796,-500.0,0.00027397,7]
[345280145,1734133836806,-500.0,0.00027397,7]
[345280146,1734133836815,-628.48087177,0.00027397,7]
[345280147,1734133836824,-1236.86,0.00027397,7]
[345280148,1734133836833,-746.05,0.00027397,7]
[345280149,1734133836842,-500.0,0.00027397,7]
[345280150,1734133836851,-500.0,0.00027397,7]
[345280151,1734133836861,-500.0,0.00027397,7]
[345280152,1734133836870,-500.0,0.00027397,7]
[345280153,1734133836879,-500.0,0.00027397,7]
[345280154,1734133836888,-500.0,0.00027397,7]
[345280155,1734133836897,-1015.94,0.00027397,7]
[345280156,1734133836906,-585.05,0.00027397,7]
[345280157,1734133836916,-500.0,0.00027397,7]
[345280158,1734133836925,-500.0,0.00027397,7]
[345280159,1734133836935,-1129.08,0.00027397,7]
[345280160,1734133836944,-194.34474976,0.00027397,2]
[345280161,1734133836953,-2840.04,0.000274,2]
[345280162,1734133836963,-225.182646,0.0002744,2]
[345280163,1734133836972,-9046.77142873,0.00027554,2]
[345280164,1734133836982,-497.60775913,0.00027671,7]
[345280165,1734133836991,-501.97541592,0.00027671,7]
[345280166,1734133837001,-500.0,0.00027671,7]
[345280167,1734133837010,-500.0,0.00027671,7]
[345280168,1734133837019,-500.0,0.00027671,7]
[345280169,1734133837028,-500.0,0.00027671,7]
[345280170,1734133837131,-157.57782442,0.00027671,7]
[345280171,1734133837140,-500.0,0.00027671,7]
[345280172,1734133837149,-500.0,0.00027671,7]
[345280173,1734133837159,-500.0,0.00027671,7]
[345280174,1734133837168,-500.0,0.00027671,7]
[345280175,1734133837178,-543.91021384,0.00027671,7]
[345280176,1734133837187,-500.0,0.00027671,7]
[345280177,1734133837196,-500.0,0.00027671,7]
[345280178,1734133837206,-500.0,0.00027671,7]
[345280179,1734133837215,-504.80288998,0.00027671,7]
[345280180,1734133837224,-610.73,0.00027671,7]
[345280181,1734133837234,-412.59,0.00027671,7]
[345280182,1734133837244,-500.0,0.00027671,7]
[345280183,1734133837253,-500.0,0.00027671,7]
[345280184,1734133837262,-500.0,0.00027671,7]
[345280185,1734133837271,-500.0,0.00027671,7]
[345280186,1734133837280,-500.0,0.00027671,7]
[345280187,1734133837289,-500.0,0.00027671,7]
[345280188,1734133837298,-777.57,0.00027671,7]
[345280189,1734133837308,-571.08061721,0.00027671,7]
[345280190,1734133837317,-500.0,0.00027671,7]
[345280191,1734133837326,-500.0,0.00027671,7]
[345280192,1734133837335,-500.0,0.00027671,7]
[345280193,1734133837343,-500.0,0.00027671,7]
[345280194,1734133837353,-500.0,0.00027671,7]
[345280195,1734133837362,-500.0,0.00027671,7]
[345280196,1734133837371,-500.0,0.00027671,7]
[345280197,1734133837380,-593.10824121,0.00027671,7]
[345280198,1734133837389,-500.0,0.00027671,7]
[345280199,1734133837398,-622.63109527,0.00027671,7]
[345280200,1734133837407,-500.0,0.00027671,7]
[345280201,1734133837416,-505.94310983,0.00027671,7]
[345280202,1734133837425,-500.0,0.00027671,7]
[345280203,1734133837435,-500.0,0.00027671,7]
[345280204,1734133837444,-500.0,0.00027671,7]
[345280205,1734133837453,-500.0,0.00027671,7]
[345280206,1734133837462,-500.0,0.00027671,7]
[345280207,1734133837471,-500.0,0.00027671,7]
[345280208,1734133837481,-500.0,0.00027671,7]
[345280209,1734133837491,-500.0,0.00027671,7]
[345280210,1734133837499,-500.0,0.00027671,7]
[345280211,1734133837509,-500.0,0.00027671,7]
[345280212,1734133837518,-500.0,0.00027671,7]
[345280213,1734133837527,-500.0,0.00027671,7]
[345280214,1734133837537,-510.75709431,0.00027671,7]
[345280215,1734133837547,-503.0149452,0.00027671,7]
[345280216,1734133837557,-500.0,0.00027671,7]
[345280217,1734133837566,-500.0,0.00027671,7]
[345280218,1734133837576,-248.57,0.00027671,7]
[345280219,1734133837585,-500.0,0.00027671,7]
[345280220,1734133837595,-500.0,0.00027671,7]
[345280221,1734133837606,-500.0,0.00027671,7]
[345280222,1734133837617,-500.0,0.00027671,7]
[345280223,1734133837626,-280.77760564,0.00027671,7]
[345280224,1734133837635,-500.0,0.00027671,7]
[345280225,1734133837645,-920.42,0.00027671,7]
[345280226,1734133837655,-500.0,0.00027671,7]
[345280227,1734133837664,-500.0,0.00027671,7]
[345280228,1734133837675,-500.0,0.00027671,7]
[345280229,1734133837686,-500.0,0.00027671,7]
[345280230,1734133837695,-500.0,0.00027671,7]
[345280231,1734133837704,-819.14,0.00027671,7]
[345280232,1734133837716,-733.36,0.00027671,7]
[345280234,1734133837727,-499.17590298,0.00027671,7]
[345280269,1734133838219,-0.82409702,0.00027671,7]
[345280271,1734133838233,-500.0,0.00027671,7]
[345280273,1734133838242,-1537.24,0.00027671,7]
[345280275,1734133838253,-500.0,0.00027671,7]
[345280278,1734133838262,-500.0,0.00027671,7]
[345280280,1734133838272,-500.0,0.00027671,7]
[345280282,1734133838281,-500.0,0.00027671,7]
[345280284,1734133838291,-500.0,0.00027671,7]
[345280286,1734133838300,-500.0,0.00027671,7]
[345280288,1734133838309,-500.0,0.00027671,7]
[345280290,1734133838319,-740.85,0.00027671,7]
[345280292,1734133838328,-500.0,0.00027671,7]
[345280294,1734133838338,-500.0,0.00027671,7]
[345280296,1734133838347,-500.0,0.00027671,7]
[345280298,1734133838356,-500.0,0.00027671,7]